bitfinex-derivatives/quotes_BTCF0:USTF0_20260314
["timestamp","ask_amount","ask_price","bid_price","bid_amount"]
[1773467024288,0.042249,70997.0,70989.0,0.16893779]
[1773467024487,0.042249,70997.0,70990.0,0.06066177]
[1773467024787,0.042249,70997.0,70991.0,0.0014]
[1773467025388,0.0014,71006.0,70991.0,0.0014]
[1773467026089,0.042249,70997.0,70991.0,0.0014]
[1773467026584,0.042249,70997.0,70992.0,0.0606658]
[1773467026790,0.042246,71001.0,70992.0,0.0606658]
[1773467026982,0.07326971,71020.0,70992.0,0.0606658]
[1773467027184,0.0014,71014.0,70992.0,0.0606658]
[1773467027689,0.01392207,71009.0,70993.0,0.0014]
[1773467028978,0.042248,70998.0,70993.0,0.0014]
[1773467032091,0.01392207,71009.0,70993.0,0.0014]
[1773467033087,0.042248,70998.0,70993.0,0.0014]
[1773467033283,0.01392207,71009.0,70993.0,0.0014]
[1773467034093,0.042248,70998.0,70993.0,0.0014]
[1773467034293,0.01392207,71009.0,70993.0,0.0014]
[1773467035982,0.042248,70999.0,70993.0,0.0014]
[1773467036281,0.01392207,71009.0,70993.0,0.0014]
[1773467036791,0.0014,71014.0,70984.0,0.25335494]
[1773467036792,0.03037094,71007.0,70994.0,0.0014]
[1773467036991,0.042249,70997.0,70993.0,0.0014]
[1773467037580,0.03037094,71007.0,70993.0,0.0014]
[1773467038994,0.042248,70999.0,70993.0,0.0014]
[1773467039397,0.03037094,71007.0,70993.0,0.0014]
[1773467039689,0.1697704,71026.0,70995.0,0.04941896]
[1773467039690,0.12925369,71024.0,70995.0,0.04941896]
[1773467039895,0.042244,71005.0,70995.0,0.04941896]
[1773467040295,0.042245,71004.0,70995.0,0.04941896]
[1773467041790,0.0014,71015.0,70994.0,0.04941896]
[1773467042298,0.03361375,71020.0,70994.0,0.04941896]
[1773467042299,0.0014,71016.0,70994.0,0.04941896]
[1773467042594,0.0014,71016.0,70994.0,0.09166896]
[1773467042795,0.0014,71016.0,70995.0,0.04941896]
[1773467043197,0.03361375,71020.0,70995.0,0.04941896]
[1773467043396,0.0014,71019.0,70995.0,0.04941896]
[1773467043694,0.0014,71019.0,70996.0,0.042249]
[1773467043900,0.03370088,71025.0,71001.0,0.04941896]
[1773467044098,0.042241,71010.0,71001.0,0.04941896]
[1773467044294,0.042242,71009.0,71002.0,0.0014]
[1773467044601,0.042242,71009.0,71003.0,0.04941896]
[1773467046499,0.042242,71008.0,71002.0,0.0014]
[1773467048199,0.03168643,71024.0,71002.0,0.05081896]
[1773467048408,0.04224,71011.0,71002.0,0.05081896]
[1773467051103,0.0014,71021.0,71002.0,0.05081896]
[1773467051401,0.0014,71023.0,71002.0,0.05081896]
[1773467051602,0.02994035,71028.0,71002.0,0.05081896]
[1773467051904,0.30992,71054.0,71006.0,0.04941896]
[1773467052205,0.07326971,71030.0,71006.0,0.04941896]
[1773467052397,0.10283096,71030.0,71006.0,0.04941896]
[1773467052601,0.0014,71029.0,71006.0,0.04941896]
[1773467052902,0.042239,71014.0,71006.0,0.04941896]
[1773467054102,0.0014,71026.0,71006.0,0.04941896]
[1773467054695,0.0014,71027.0,71006.0,0.04941896]
[1773467055002,0.042237,71017.0,71006.0,0.04941896]
[1773467061808,0.042237,71016.0,71006.0,0.04941896]
[1773467062108,0.0295825,71026.0,71002.0,0.05526253]
[1773467062809,0.0295825,71026.0,71002.0,0.25475494]
[1773467063010,0.0309825,71026.0,71003.0,0.05386253]
[1773467064012,0.042238,71015.0,71003.0,0.05386253]
[1773467067328,0.042238,71015.0,71003.0,0.30721747]
[1773467068023,0.042238,71015.0,71004.0,0.05386253]
[1773467069222,0.042238,71015.0,71004.0,0.30721747]
[1773467070823,0.042238,71015.0,71005.0,0.05386253]
[1773467072228,0.042238,71015.0,71005.0,0.25335494]
[1773467072425,0.042238,71015.0,71005.0,0.30721747]
[1773467075130,0.042238,71015.0,71005.0,0.25335494]
[1773467075319,0.042238,71015.0,71006.0,0.05386253]
[1773467077231,0.042238,71015.0,71006.0,0.30721747]
[1773467080030,0.042238,71015.0,71007.0,0.05386253]
[1773467080232,0.042238,71015.0,71008.0,0.0014]
[1773467080929,0.042241,71010.0,71005.0,0.0014]
[1773467081132,0.042241,71010.0,70996.0,0.09611153]
[1773467081427,0.042241,71010.0,70980.0,0.07323334]
[1773467081428,9.2e-07,71031.0,71002.0,0.05386253]
[1773467081628,0.042223,71040.0,71027.0,0.04223]
[1773467081933,0.0014,71048.0,71021.0,0.05386253]
[1773467081934,0.042225,71037.0,71028.0,0.29814667]
[1773467082230,0.042225,71037.0,71029.0,0.29814667]
[1773467082430,0.042225,71037.0,71030.0,0.29674667]
[1773467082631,0.042226,71035.0,71031.0,6.7e-07]
[1773467082832,0.042226,71035.0,71028.0,0.0014]
[1773467083225,0.042227,71033.0,71028.0,0.0014]
[1773467083426,0.05010931,71041.0,71023.0,0.0014]
[1773467083632,0.04223,71029.0,71023.0,0.0014]
[1773467084330,0.042228,71032.0,71023.0,0.0014]
[1773467085826,0.042229,71031.0,71023.0,0.0014]
[1773467089630,0.05010931,71036.0,71023.0,0.0014]
[1773467091642,0.05010931,71036.0,71024.0,0.16850368]
[1773467092146,0.042229,71031.0,71024.0,0.16850368]
[1773467092631,0.042229,71031.0,71023.0,0.16990368]
[1773467092836,0.042229,71031.0,71026.0,0.16850368]
[1773467094638,0.042229,71031.0,71023.0,0.0014]
[1773467094639,0.05010931,71036.0,71027.0,0.30437104]
[1773467094838,0.05010931,71036.0,71028.0,4e-08]
[1773467095039,0.05010931,71036.0,71023.0,0.0014]
[1773467096336,0.042228,71031.0,71023.0,0.0014]
[1773467096840,0.05010931,71036.0,71023.0,0.0014]
[1773467098141,0.042228,71032.0,71023.0,0.0014]
[1773467098543,0.042229,71031.0,71023.0,0.0014]
[1773467098837,0.05727296,71045.0,71023.0,0.0014]
[1773467099036,0.05727296,71043.0,71030.0,0.07323334]
[1773467099342,0.05867296,71043.0,71030.0,0.07323334]
[1773467099642,0.042227,71034.0,71023.0,0.0014]
[1773467100638,0.042227,71033.0,71023.0,0.0014]
[1773467100942,0.0014,71040.0,71023.0,0.0014]
[1773467100943,0.04223,71029.0,71023.0,0.0014]
[1773467101445,0.042229,71031.0,71023.0,0.0014]
[1773467102446,0.05727296,71029.0,71001.0,5.8e-07]
[1773467102647,0.05727296,71015.0,71003.0,0.042244]
[1773467102847,0.05727296,71015.0,71000.0,0.07323334]
[1773467103046,0.05727296,71015.0,71001.0,0.0014]
[1773467103245,0.05727296,71015.0,71005.0,0.07323334]
[1773467103444,0.042237,71017.0,71005.0,0.07323334]
[1773467104247,0.042237,71017.0,71001.0,0.0044]
[1773467104948,0.042237,71017.0,71005.0,0.001]
[1773467105140,0.042237,71016.0,71005.0,0.001]
[1773467105848,0.042237,71016.0,71005.0,0.003]
[1773467106450,0.042237,71016.0,71005.0,0.001]
[1773467106837,0.042237,71016.0,71006.0,0.2725039]
[1773467107040,0.042237,71016.0,71007.0,0.2725039]
[1773467107247,0.042237,71016.0,71008.0,0.2739039]
[1773467107548,0.042237,71016.0,71009.0,0.2725039]
[1773467107747,0.042237,71016.0,71010.0,0.2725039]
[1773467107948,0.042237,71016.0,71011.0,0.2725039]
[1773467108149,0.042237,71016.0,71012.0,0.2725039]
[1773467108349,0.042237,71016.0,71013.0,9e-07]
[1773467108549,0.042237,71016.0,71008.0,0.0014]
[1773467116061,0.00800107,71024.0,71008.0,0.0014]
[1773467116546,0.0014,71024.0,71008.0,0.0014]
[1773467117157,0.042238,71016.0,71008.0,0.0014]
[1773467117555,0.0014,71024.0,71008.0,0.0014]
[1773467117750,0.04327057,71019.0,71001.0,0.2526555]
[1773467117946,0.04047057,71019.0,71002.0,0.0014]
[1773467118150,0.042243,71006.0,71002.0,0.0014]
[1773467119256,0.042243,71006.0,71000.0,0.0014]
[1773467119465,0.03907057,71011.0,71000.0,0.0014]
[1773467119662,0.042244,71005.0,71000.0,0.0014]
[1773467119854,0.042244,71005.0,71001.0,0.0014]
[1773467120359,0.042244,71005.0,70996.0,0.00013475]
[1773467120659,0.03907057,71011.0,70997.0,0.0014]
[1773467120854,0.03907057,71011.0,70996.0,0.00013475]
[1773467121058,0.042244,71006.0,70997.0,0.0014]
[1773467122657,0.0014,71015.0,70997.0,0.0014]
[1773467123750,0.05005986,71015.0,70997.0,0.0014]
[1773467123954,0.042243,71007.0,70997.0,0.0014]
[1773467124557,0.042245,71003.0,70998.0,0.0014]
[1773467124763,0.0014,71015.0,70999.0,0.0014]
[1773467125458,0.042243,71006.0,70999.0,0.0014]
[1773467127960,0.005,71038.0,71007.0,0.09377152]
[1773467128165,0.042231,71028.0,71015.0,0.13600852]
[1773467128464,0.042231,71027.0,71016.0,0.09517152]
[1773467132762,0.042228,71032.0,71019.0,0.0941075]
[1773467132955,0.042229,71031.0,71019.0,0.0941075]
[1773467133667,0.042229,71030.0,71019.0,0.0941075]
[1773467134168,0.04223,71029.0,71019.0,0.0941075]
[1773467139575,0.03589181,71047.0,71018.0,0.0939796]
[1773467139767,0.042229,71031.0,71019.0,0.0939796]
[1773467139962,0.03501538,71041.0,71019.0,0.0939796]
[1773467140674,0.042229,71030.0,71019.0,0.0939796]
[1773467142674,0.042229,71030.0,71020.0,0.0732608]
[1773467142974,0.042229,71030.0,71020.0,0.16623213]
[1773467145175,0.042229,71030.0,71020.0,0.0732608]
[1773467145376,0.042229,71030.0,71021.0,0.09297959]
[1773467145571,0.042229,71030.0,71022.0,0.0014]
[1773467145777,0.042229,71030.0,71022.0,0.09438281]
[1773467153182,0.04223,71029.0,71022.0,0.09438281]
[1773467157488,0.04223,71028.0,71022.0,0.09438281]
[1773467163302,0.042233,71023.0,71019.0,0.16853126]
[1773467163495,0.042232,71025.0,71020.0,0.0014]
[1773467163691,0.042232,71025.0,71021.0,0.0014]
[1773467175101,0.0732608,71050.0,71022.0,0.09558204]
[1773467175102,0.0014,71045.0,71022.0,0.09558204]
[1773467175309,0.042228,71032.0,71022.0,0.09558204]
[1773467176205,0.09000841,71053.0,71028.0,0.042229]
[1773467176401,0.0014,71052.0,71031.0,0.09558204]
[1773467176595,0.09000841,71053.0,71034.0,0.09558204]
[1773467176799,0.04222,71045.0,71033.0,0.09558204]
[1773467177199,0.042221,71044.0,71035.0,0.09558204]
[1773467178695,0.09000841,71059.0,71035.0,0.09558204]
[1773467178897,0.042217,71050.0,71041.0,0.09558204]
[1773467179107,0.042217,71050.0,71042.0,0.0014]
[1773467179504,0.042218,71049.0,71042.0,0.0014]
[1773467191619,0.042218,71049.0,71032.0,0.16853126]
[1773467191620,0.0588929,71046.0,71029.0,0.16853126]
[1773467191816,0.0588929,71046.0,71027.0,0.16853126]
[1773467192013,0.0588929,71046.0,71028.0,0.0014]
[1773467192223,0.05815327,71049.0,71027.0,0.0014]
[1773467192419,0.05815327,71049.0,71028.0,0.0014]
[1773467192716,0.05815327,71049.0,71029.0,0.0014]
[1773467192917,0.06172021,71049.0,71030.0,0.0014]
[1773467193117,0.06172021,71049.0,71031.0,0.0014]
[1773467193314,0.06172021,71049.0,71032.0,0.0014]
[1773467193509,0.042226,71035.0,71031.0,0.0014]
[1773467193709,0.042226,71035.0,71021.0,0.042234]
[1773467193921,0.042226,71035.0,71022.0,0.0014]
[1773467194509,0.042227,71034.0,71022.0,0.0014]
[1773467194721,0.05468206,71042.0,71022.0,0.0014]
[1773467194916,0.03331233,71049.0,71022.0,0.0014]
[1773467195516,0.03331233,71042.0,71023.0,0.0014]
[1773467195715,0.03331233,71042.0,71010.0,0.07315848]
[1773467195716,0.03255267,71039.0,71016.0,0.13349892]
[1773467195918,0.04223,71029.0,71017.0,0.0014]
[1773467196124,0.04223,71028.0,71017.0,0.0014]
[1773467196318,0.04223,71028.0,71018.0,0.0014]
[1773467196716,0.04223,71028.0,71016.0,0.09126192]
[1773467196914,0.04223,71028.0,71017.0,0.0014]
[1773467197315,0.04223,71028.0,71018.0,0.0014]
[1773467197715,0.04223,71028.0,71016.0,0.09126192]
[1773467197919,0.04223,71028.0,71017.0,0.0014]
[1773467198320,0.04223,71028.0,71018.0,0.0014]
[1773467198818,0.04223,71028.0,71019.0,0.0014]
[1773467199324,0.042233,71024.0,71020.0,0.0014]
[1773467199516,0.042233,71024.0,71021.0,0.0014]
[1773467199717,0.042233,71024.0,71022.0,0.0014]
[1773467200016,0.042233,71024.0,71023.0,0.0014]
[1773467203822,0.042231,71026.0,71023.0,0.0014]
[1773467204726,0.042231,71026.0,71023.0,0.09266192]
[1773467204920,0.0014,71038.0,71023.0,0.09266192]
[1773467205725,0.02199679,71042.0,71023.0,0.09266192]
[1773467205926,0.042231,71027.0,71023.0,0.09266192]
[1773467206220,0.042231,71027.0,71023.0,9.2e-07]
[1773467206519,0.042231,71027.0,71016.0,0.08566337]
[1773467206725,0.042231,71027.0,71018.0,0.08566337]
[1773467207219,0.07315848,71050.0,71017.0,0.0014]
[1773467207220,0.042214,71055.0,71026.0,0.08566337]
[1773467207524,0.08908917,71056.0,71011.0,0.31564212]
[1773467207525,0.042228,71032.0,71027.0,0.0014]
[1773467207821,0.08908917,71042.0,71028.0,0.0014]
[1773467208019,0.08908917,71047.0,71029.0,0.0014]
[1773467208221,0.08908917,71047.0,71020.0,0.07315848]
[1773467208420,0.08908917,71047.0,71021.0,0.0014]
[1773467209029,0.042228,71032.0,71021.0,0.0014]
[1773467210632,0.0014,71042.0,71025.0,0.08566337]
[1773467210823,0.0014,71042.0,71030.0,0.07315848]
[1773467211127,0.042226,71036.0,71029.0,0.0014]
[1773467211629,0.042228,71033.0,71030.0,0.0014]
[1773467211832,0.042228,71033.0,71031.0,0.0014]
[1773467212032,0.042228,71033.0,71020.0,0.11539248]
[1773467212333,0.042228,71033.0,71021.0,0.0014]
[1773467212523,0.042228,71033.0,71020.0,0.11539248]
[1773467212825,0.09606373,71041.0,71021.0,0.08886521]
[1773467213027,0.0014,71042.0,71030.0,0.07315848]
[1773467213227,0.0014,71042.0,71031.0,0.0014]
[1773467213429,0.0014,71042.0,71030.0,0.07315848]
[1773467213430,0.042225,71037.0,71030.0,0.07315848]
[1773467213730,0.042225,71037.0,71031.0,0.0014]
[1773467214834,0.042226,71036.0,71031.0,0.0014]
[1773467215936,0.09606373,71049.0,71031.0,0.0014]
[1773467216235,0.042224,71039.0,71031.0,0.0014]
[1773467216735,0.042224,71039.0,71031.0,0.09026521]
[1773467217034,0.042224,71038.0,71031.0,0.0014]
[1773467217237,0.042225,71037.0,71031.0,0.0014]
[1773467218229,0.09606373,71050.0,71031.0,0.0014]
[1773467218437,0.042224,71039.0,71031.0,0.0014]
[1773467237258,0.09606373,71041.0,71032.0,0.0014]
[1773467237458,0.09606373,71040.0,71028.0,0.0014]
[1773467238654,0.042228,71032.0,71028.0,0.0014]
[1773467240963,0.042228,71032.0,71028.0,0.0034]
[1773467245159,0.042228,71032.0,71028.0,0.0014]
[1773467246966,0.09606373,71040.0,71028.0,0.0014]
[1773467246967,0.042228,71031.0,71028.0,0.0014]
[1773467248367,0.042229,71030.0,71028.0,0.0014]
[1773467248670,0.042228,71032.0,71028.0,0.0014]
[1773467249672,0.13027133,71031.0,71027.0,0.0014]
[1773467249868,0.042229,71031.0,71027.0,0.0014]
[1773467251171,0.042227,71033.0,71027.0,0.0014]
[1773467251569,0.08804233,71050.0,71028.0,0.08811511]
[1773467251872,0.042224,71039.0,71030.0,0.16131732]
[1773467253274,0.042224,71039.0,71030.0,0.07320221]
[1773467253675,0.08804233,71050.0,71030.0,0.07320221]
[1773467254779,0.08904233,71050.0,71030.0,0.07320221]
[1773467254978,0.042222,71042.0,71030.0,0.07320221]
[1773467255679,0.042222,71042.0,71030.0,0.24205223]
[1773467255883,0.042223,71041.0,71030.0,0.16885002]
[1773467257278,0.042223,71041.0,71030.0,0.24205223]
[1773467260679,0.042223,71041.0,71031.0,0.08811511]
[1773467261085,0.08804233,71050.0,71031.0,0.08811511]
[1773467261279,0.042222,71042.0,71031.0,0.08811511]
[1773467261782,0.042222,71042.0,71031.0,0.25696513]
[1773467262777,0.042222,71042.0,71031.0,0.08811511]
[1773467263786,0.042222,71042.0,71030.0,0.07320221]
[1773467266990,0.0014,71051.0,71031.0,0.09120623]
[1773467267291,0.042221,71043.0,71032.0,0.09120623]
[1773467268186,0.042221,71043.0,71034.0,0.09120623]
[1773467268692,0.042222,71042.0,71034.0,0.09120623]
[1773467270287,0.042223,71041.0,71033.0,0.0014]
[1773467270483,0.09516594,71049.0,71033.0,0.0014]
[1773467270687,0.042226,71034.0,71025.0,0.25320106]
[1773467270884,0.042228,71032.0,71026.0,0.0014]
[1773467272292,0.042227,71034.0,71026.0,0.0014]
[1773467274704,0.042227,71033.0,71026.0,0.0014]
[1773467277907,0.042227,71033.0,71022.0,0.25320106]
[1773467278110,0.042227,71033.0,71023.0,0.0014]
[1773467280613,0.042227,71033.0,71023.0,0.25460106]
[1773467283313,0.042227,71033.0,71023.0,0.0014]
[1773467284013,0.042227,71033.0,71024.0,0.25320106]
[1773467289214,0.042226,71035.0,71024.0,0.34188096]
[1773467289518,0.042226,71035.0,71025.0,0.0886799]
[1773467290419,0.042227,71034.0,71025.0,0.0886799]
[1773467291217,0.03942699,71034.0,71026.0,0.0886799]
[1773467292210,0.0014,71043.0,71026.0,0.0886799]
[1773467292416,0.042225,71037.0,71027.0,0.0886799]
[1773467293118,0.042225,71036.0,71027.0,0.0886799]
[1773467295422,0.042225,71037.0,71027.0,0.0886799]
[1773467298727,0.042226,71036.0,71027.0,0.0886799]
[1773467310139,0.08893574,71050.0,71027.0,0.0886799]
[1773467310338,0.042225,71037.0,71027.0,0.0886799]
[1773467313333,0.12974767,71059.0,71035.0,0.08914824]
[1773467313638,0.08753567,71058.0,71036.0,0.0014]
[1773467314941,0.042221,71044.0,71036.0,0.0014]
[1773467315350,0.08753567,71055.0,71036.0,0.0014]
[1773467315740,0.042222,71042.0,71036.0,0.0014]
[1773467316633,0.042222,71042.0,71031.0,0.08914824]
[1773467316840,0.042222,71042.0,71032.0,0.0014]
[1773467317340,0.042223,71041.0,71032.0,0.0014]
[1773467317535,0.042223,71041.0,71033.0,0.0014]
[1773467317938,0.042223,71041.0,71031.0,0.08914824]
[1773467318241,0.042223,71041.0,71032.0,0.0014]
[1773467318742,0.08753567,71047.0,71033.0,0.0014]
[1773467319340,0.042228,71031.0,71024.0,0.25320106]
[1773467319639,0.042227,71033.0,71025.0,0.0014]
[1773467319844,0.042227,71033.0,71021.0,0.08914824]
[1773467320039,0.042227,71033.0,71022.0,0.0014]
[1773467320247,0.042227,71033.0,71023.0,0.0014]
[1773467320544,0.042226,71035.0,71023.0,0.0014]
[1773467320743,0.042226,71035.0,71024.0,0.0014]
[1773467321138,0.042226,71035.0,71021.0,0.13138224]
[1773467321339,0.042226,71035.0,71022.0,0.0014]
[1773467321741,0.042226,71035.0,71023.0,0.0014]
[1773467322245,0.042226,71035.0,71024.0,0.0014]
[1773467322746,0.042226,71035.0,71025.0,0.0014]
[1773467323144,0.042226,71035.0,71022.0,0.042233]
[1773467323341,0.042226,71035.0,71023.0,0.0014]
[1773467323644,0.042226,71035.0,71022.0,0.042233]
[1773467323846,0.042226,71035.0,71023.0,0.0014]
[1773467324245,0.042226,71035.0,71024.0,0.0014]
[1773467324646,0.042226,71035.0,71022.0,0.042233]
[1773467324945,0.042226,71035.0,71023.0,0.0014]
[1773467325145,0.042226,71035.0,71022.0,0.042233]
[1773467325349,0.042226,71035.0,71023.0,0.0014]
[1773467325852,0.042226,71035.0,71024.0,0.0014]
[1773467326353,0.042226,71035.0,71025.0,0.0014]
[1773467326949,0.042226,71035.0,71026.0,0.0014]
[1773467327448,0.042226,71035.0,71027.0,0.0014]
[1773467327652,0.042227,71034.0,71027.0,0.0014]
[1773467327846,0.08753567,71042.0,71027.0,0.0014]
[1773467328453,0.08753567,71042.0,71019.0,0.25320106]
[1773467328951,0.08227292,71045.0,71020.0,0.0014]
[1773467329152,0.08227292,71045.0,71019.0,0.29543606]
[1773467329340,0.08227292,71045.0,71020.0,0.07458574]
[1773467329742,0.08227292,71045.0,71021.0,0.0014]
[1773467329943,0.042228,71032.0,71021.0,0.0014]
[1773467330145,0.042228,71032.0,71022.0,0.0014]
[1773467330455,0.042228,71032.0,71023.0,0.0014]
[1773467330646,0.042228,71032.0,71024.0,0.17016013]
[1773467331050,0.042228,71032.0,71024.0,0.16876013]
[1773467331250,0.042228,71032.0,71025.0,0.0014]
[1773467331557,0.042228,71032.0,71024.0,0.16876013]
[1773467331757,0.042228,71032.0,71025.0,0.0014]
[1773467332058,0.042228,71032.0,71024.0,0.16876013]
[1773467332260,0.042228,71032.0,71025.0,0.0014]
[1773467332653,0.042228,71032.0,71024.0,0.16876013]
[1773467332654,0.042228,71032.0,71026.0,0.0014]
[1773467333050,0.042228,71032.0,71024.0,0.16876013]
[1773467333253,0.042228,71032.0,71025.0,0.0014]
[1773467333552,0.042228,71032.0,71023.0,0.16876013]
[1773467333757,0.042228,71032.0,71024.0,0.0014]
[1773467334055,0.042228,71032.0,71023.0,0.16876013]
[1773467334262,0.042228,71032.0,71024.0,0.0014]
[1773467334559,0.042228,71032.0,71023.0,0.16876013]
[1773467334751,0.042228,71032.0,71024.0,0.0014]
[1773467335063,0.042228,71032.0,71023.0,0.16876013]
[1773467335362,0.042228,71032.0,71024.0,0.0014]
[1773467335560,0.042228,71032.0,71023.0,0.16876013]
[1773467335761,0.042228,71032.0,71024.0,0.0014]
[1773467336163,0.042228,71032.0,71025.0,0.0014]
[1773467336560,0.042228,71032.0,71023.0,0.16876013]
[1773467336762,0.042228,71032.0,71024.0,0.0014]
[1773467337158,0.042228,71032.0,71025.0,0.0014]
[1773467337562,0.042228,71032.0,71023.0,0.16876013]
[1773467337764,0.042228,71032.0,71024.0,0.0014]
[1773467338261,0.042228,71032.0,71025.0,0.0014]
[1773467338761,0.042228,71032.0,71026.0,0.0014]
[1773467339253,0.042228,71032.0,71027.0,0.0014]
[1773467339650,0.042228,71032.0,71023.0,0.16876013]
[1773467339856,0.042228,71032.0,71027.0,0.0014]
[1773467340158,0.042228,71032.0,71023.0,0.16876013]
[1773467340462,0.042229,71031.0,71024.0,0.0014]
[1773467341265,0.042229,71031.0,71023.0,0.16876013]
[1773467341456,0.042229,71031.0,71024.0,0.0014]
[1773467341764,0.042229,71031.0,71023.0,0.16876013]
[1773467342063,0.042229,71031.0,71024.0,0.0014]
[1773467342266,0.042229,71031.0,71023.0,0.16876013]
[1773467342562,0.042229,71031.0,71024.0,0.0014]
[1773467342763,0.042229,71031.0,71023.0,0.16876013]
[1773467342964,0.042229,71031.0,71024.0,0.0014]
[1773467343263,0.042229,71031.0,71023.0,0.16876013]
[1773467343464,0.042229,71031.0,71024.0,0.0014]
[1773467343765,0.042229,71031.0,71023.0,0.16876013]
[1773467343965,0.042229,71031.0,71024.0,0.0014]
[1773467344265,0.042229,71030.0,71024.0,0.16876013]
[1773467344565,0.042229,71030.0,71025.0,0.0014]
[1773467344759,0.042229,71030.0,71026.0,0.0014]
[1773467345057,0.042229,71030.0,71027.0,0.0014]
[1773467345653,0.042229,71030.0,71024.0,0.16876013]
[1773467345961,0.042229,71030.0,71025.0,0.0014]
[1773467346163,0.042229,71030.0,71026.0,0.0014]
[1773467346362,0.042229,71030.0,71027.0,0.0014]
[1773467347155,0.042229,71030.0,71025.0,0.16876013]
[1773467347456,0.042229,71030.0,71026.0,0.0014]
[1773467347651,0.042229,71030.0,71027.0,0.0014]
[1773467347858,0.042229,71030.0,71025.0,0.16876013]
[1773467348157,0.042229,71030.0,71026.0,0.0014]
[1773467348355,0.042229,71030.0,71025.0,0.16876013]
[1773467348553,0.042229,71030.0,71026.0,0.0014]
[1773467348754,0.042229,71030.0,71025.0,0.16876013]
[1773467348965,0.042229,71030.0,71026.0,0.0014]
[1773467349161,0.042229,71030.0,71025.0,0.16876013]
[1773467349162,0.042229,71030.0,71027.0,0.0014]
[1773467349763,0.04223,71029.0,71027.0,0.0014]
[1773467349965,0.04223,71029.0,71020.0,0.07318574]
[1773467350166,0.04223,71029.0,71021.0,0.0014]
[1773467350562,0.04223,71029.0,71022.0,0.0014]
[1773467350954,0.04223,71029.0,71020.0,0.07318574]
[1773467351266,0.04223,71029.0,71023.0,0.0014]
[1773467351464,0.04223,71029.0,71020.0,0.07318574]
[1773467351664,0.04223,71029.0,71024.0,0.0014]
[1773467351963,0.04223,71029.0,71020.0,0.07318574]
[1773467352163,0.08288709,71039.0,71021.0,0.0014]
[1773467352366,0.08288709,71038.0,71022.0,0.0014]
[1773467352662,0.08288709,71038.0,71023.0,0.0014]
[1773467352859,0.08288709,71038.0,71024.0,0.0014]
[1773467353057,0.08288709,71038.0,71025.0,0.0014]
[1773467353262,0.08288709,71038.0,71026.0,0.0014]
[1773467353455,0.08288709,71038.0,71016.0,0.08754178]
[1773467353660,0.08288709,71038.0,71017.0,0.08894178]
[1773467354168,0.08288709,71038.0,71018.0,0.0014]
[1773467354366,0.08288709,71038.0,71020.0,0.07318574]
[1773467354562,0.04223,71028.0,71017.0,0.08754178]
[1773467354770,0.04223,71028.0,71021.0,0.0014]
[1773467355268,0.04223,71028.0,71022.0,0.0014]
[1773467355570,0.04223,71028.0,71018.0,0.07318574]
[1773467355764,0.04223,71028.0,71017.0,0.08754178]
[1773467355765,0.04223,71028.0,71019.0,0.0014]
[1773467356271,0.04223,71028.0,71020.0,0.0014]
[1773467356672,0.08288709,71038.0,71021.0,0.0014]
[1773467356868,0.08288709,71038.0,71013.0,0.08754178]
[1773467357069,0.08288709,71038.0,71014.0,0.08894178]
[1773467357567,0.08288709,71038.0,71015.0,0.0014]
[1773467357868,0.08288709,71038.0,71016.0,0.0014]
[1773467358072,0.042232,71025.0,71016.0,0.0014]
[1773467358371,0.042232,71025.0,71016.0,0.08894178]
[1773467358571,0.042232,71025.0,71017.0,0.0014]
[1773467359072,0.042232,71025.0,71018.0,0.0014]
[1773467359566,0.042232,71025.0,71013.0,0.08754178]
[1773467359773,0.042232,71025.0,71019.0,0.0014]
[1773467359967,0.042232,71025.0,71020.0,0.0014]
[1773467360174,0.042233,71024.0,71021.0,0.0014]
[1773467360481,0.0014,71030.0,71010.0,2.9e-07]
[1773467360770,0.042238,71015.0,71008.0,0.08894178]
[1773467361268,0.042239,71014.0,71008.0,0.08894178]
[1773467361472,0.042239,71013.0,71008.0,0.08894178]
[1773467361669,0.042239,71013.0,71009.0,0.0014]
[1773467361865,0.042239,71013.0,71010.0,0.0014]
[1773467362168,0.042239,71013.0,71006.0,0.0909847]
[1773467362369,0.042239,71013.0,71007.0,0.0014]
[1773467366174,0.0014,71027.0,71007.0,0.0923847]
[1773467366469,0.042236,71018.0,71010.0,0.16417044]
[1773467366674,0.042236,71018.0,71010.0,0.0909847]
[1773467367176,0.042237,71017.0,71010.0,0.0909847]
[1773467370472,0.042237,71016.0,71010.0,0.0909847]
[1773467373870,0.042239,71013.0,71008.0,0.0014]
[1773467374065,0.042239,71013.0,71009.0,0.0014]
[1773467374270,0.042239,71013.0,71010.0,0.0014]
[1773467374467,0.042239,71013.0,71000.0,0.20645686]
[1773467374670,0.042239,71013.0,71001.0,0.0014]
[1773467375274,0.042239,71013.0,71001.0,0.1346307]
[1773467379772,0.042239,71013.0,71002.0,0.0909847]
[1773467379981,0.042238,71015.0,71003.0,0.0909847]
[1773467386875,0.042239,71014.0,71003.0,0.0909847]
[1773467388278,0.042233,71023.0,71013.0,0.08534449]
[1773467388470,0.042233,71023.0,71004.0,0.07322516]
[1773467388471,0.15443351,71030.0,71014.0,0.0014]
[1773467388671,0.08120835,71039.0,71015.0,0.0014]
[1773467388981,0.20749572,71038.0,71020.0,0.15856965]
[1773467389182,0.20749572,71037.0,71021.0,0.0014]
[1773467389474,0.20749572,71036.0,71021.0,0.0014]
[1773467389779,0.20749572,71035.0,71021.0,0.0014]
[1773467390077,0.0014,71038.0,71021.0,0.0014]
[1773467390078,0.20749572,71034.0,71021.0,0.0014]
[1773467390273,0.04223,71029.0,71021.0,0.0014]
[1773467390581,0.042216,71053.0,71021.0,0.0014]
[1773467390582,0.1520799,71056.0,71026.0,0.08534449]
[1773467390778,0.1520799,71056.0,71030.0,0.07322516]
[1773467390779,0.08120835,71052.0,71030.0,0.07322516]
[1773467390976,0.19678688,71051.0,71031.0,0.0014]
[1773467391179,0.08456657,71050.0,71031.0,0.0014]
[1773467391681,0.042225,71037.0,71031.0,0.0014]
[1773467391882,0.042226,71036.0,71031.0,0.0014]
[1773467392277,0.001,71056.0,71043.0,0.12768846]